bitfinex/quotes_ETHUSD_20240924
["timestamp","ask_amount","ask_price","bid_price","bid_amount"]
[1727146260561,3.84994923,2626.6,2626.2,1.82312]
[1727146261500,3.8074,2626.5,2626.2,1.8112]
[1727146261801,0.04273258,2626.4,2626.2,1.8112]
[1727146262459,3.80714,2626.7,2626.2,1.8112]
[1727146262654,0.04273258,2626.3,2626.2,1.8112]
[1727146262858,3.80735,2626.5,2626.2,1.8112]
[1727146263089,0.04273258,2626.3,2626.2,1.8112]
[1727146263302,3.96174,2626.7,2626.2,1.8112]
[1727146263460,0.04273258,2626.3,2626.2,2.373117]
[1727146263659,3.80714,2626.7,2626.2,2.373117]
[1727146263970,3.80714,2626.7,2626.2,6.180867]
[1727146264166,3.80714,2626.7,2626.2,1.8112]
[1727146264167,0.04273258,2626.6,2626.2,1.8112]
[1727146264367,3.8074,2626.5,2626.2,1.8112]
[1727146264573,3.80758,2626.4,2626.2,1.8112]
[1727146264892,0.04273258,2626.3,2626.2,4.80778]
[1727146265076,3.96145,2626.9,2626.2,4.80778]
[1727146265077,0.1546,2626.9,2626.2,1.8152]
[1727146265280,0.04273258,2626.3,2626.2,1.8152]
[1727146265495,3.8072,2626.6,2626.2,2.377511]
[1727146265663,0.04273258,2626.3,2626.2,2.377511]
[1727146265859,3.8072,2626.6,2626.2,2.377511]
[1727146266088,0.04273258,2626.3,2626.2,2.377511]
[1727146266293,3.8072,2626.6,2626.2,2.377511]
[1727146266496,0.04274731,2626.3,2626.2,2.377511]
[1727146266693,3.8072,2626.6,2626.2,2.377511]
[1727146266894,0.04274731,2626.3,2626.2,2.377511]
[1727146267119,3.8072,2626.6,2626.2,2.377511]
[1727146267272,0.04274731,2626.3,2626.2,2.377511]
[1727146267466,3.8072,2626.6,2626.2,2.377511]
[1727146267666,0.04274731,2626.3,2626.2,2.377511]
[1727146267866,3.8072,2626.6,2626.2,2.377511]
[1727146268102,0.04274731,2626.3,2626.2,2.377511]
[1727146268299,3.8072,2626.6,2626.2,2.377511]
[1727146268467,0.04274731,2626.3,2626.2,2.45365682]
[1727146268667,3.80692,2626.8,2626.2,6.185291]
[1727146268863,3.80692,2626.8,2626.3,0.9993131]
[1727146269093,3.80685,2626.9,2626.3,4.8068631]
[1727146269400,3.80696,2626.8,2626.3,4.8068631]
[1727146269600,3.80707,2626.7,2626.3,0.9993131]
[1727146269764,4.59938262,2626.9,2626.3,0.9993131]
[1727146269965,3.80678,2626.9,2626.3,4.8068731]
[1727146270186,7.61364,2626.9,2626.3,4.8068731]
[1727146270391,3.80678,2626.9,2626.3,4.8068731]
[1727146271100,3.80693,2626.8,2626.3,4.8068731]
[1727146272003,8.40628262,2626.9,2626.4,0.66982143]
[1727146272306,3.80692,2626.8,2626.3,4.8068731]
[1727146272519,0.79260262,2626.9,2626.5,4.6224]
[1727146272807,4.59907262,2627.1,2626.5,4.6224]
[1727146272991,4.59907262,2627.1,2626.6,0.46985351]
[1727146273403,0.79260262,2627.0,2626.6,0.46985351]
[1727146273569,4.59924262,2627.0,2626.6,0.46985351]
[1727146273768,4.59924262,2627.0,2626.5,4.6224]
[1727146273769,3.80693,2626.8,2626.5,0.8152]
[1727146273973,3.80708,2626.7,2626.5,0.8152]
[1727146274267,3.80745,2626.5,2626.2,1.807]
[1727146274517,3.80763,2626.3,2626.2,1.0]
[1727146275018,0.79260262,2626.4,2626.2,1.0]
[1727146275309,4.99628749,2626.6,2626.2,1.480805]
[1727146275310,0.79260262,2626.5,2626.2,1.480805]
[1727146275601,0.79260262,2626.5,2626.3,0.807]
[1727146275807,0.79260262,2626.4,2626.3,0.807]
[1727146276568,1.18899749,2626.4,2626.3,0.807]
[1727146277087,5.39108251,2626.6,2626.3,0.807]
[1727146277088,1.18899749,2626.5,2626.3,0.807]
[1727146277294,0.79762366,2626.4,2626.3,0.807]
[1727146277495,1.18899749,2626.4,2626.3,0.807]
[1727146278175,1.23175463,2626.4,2626.3,0.807]
[1727146278512,0.84080328,2626.4,2626.3,3.80763]
[1727146278710,0.04275714,2626.4,2626.3,5.84299771]
[1727146279018,0.79804614,2626.6,2626.3,5.84299771]
[1727146279244,0.79804614,2626.6,2626.5,4.61434]
[1727146279733,0.79804614,2626.6,2626.3,1.22836771]
[1727146280018,0.79753057,2626.5,2626.3,1.22836771]
[1727146280333,0.79753057,2626.4,2626.2,5.69090407]
[1727146280496,0.79753057,2626.5,2626.2,5.61476]
[1727146281386,0.79753057,2626.4,2626.2,5.61476]
[1727146281683,0.79753057,2626.4,2626.3,3.80763]
[1727146281888,1.18899749,2626.6,2626.4,4.61449]
[1727146281889,0.79753057,2626.5,2626.4,4.61449]
[1727146282310,0.79753057,2626.6,2626.4,4.61449]
[1727146282513,0.79753057,2626.5,2626.4,4.61449]
[1727146283992,0.79753057,2626.6,2626.4,4.61449]
[1727146284203,0.79725159,2626.6,2626.5,0.461449]
[1727146284590,0.79725424,2626.6,2626.5,4.268789]
[1727146286092,1.18899749,2626.6,2626.5,4.268789]
[1727146286286,1.18899749,2626.7,2626.5,4.268789]
[1727146286535,1.18899749,2626.7,2626.6,0.51519283]
[1727146286927,1.18899749,2626.8,2626.6,0.51519283]
[1727146287354,1.18899749,2626.7,2626.6,4.32230283]
[1727146287551,0.79735112,2626.7,2626.6,5.12930283]
[1727146287751,0.79735112,2626.8,2626.7,3.80705]
[1727146287952,0.79735112,2626.8,2626.7,4.70068528]
[1727146288121,1.18899749,2626.9,2626.8,3.80691]
[1727146288522,1.18899749,2627.0,2626.8,3.80691]
[1727146288742,0.79704781,2626.9,2626.8,3.80691]
[1727146288940,1.18899749,2627.0,2626.8,3.80691]
[1727146289151,0.79703066,2626.9,2626.8,3.80691]
[1727146289471,1.18899749,2627.0,2626.8,3.80691]
[1727146289636,0.79669719,2626.9,2626.8,3.80691]
[1727146290547,1.18899749,2626.9,2626.5,3.80733]
[1727146290750,0.7965717,2626.7,2626.5,3.80733]
[1727146290930,0.7965717,2626.7,2626.5,4.643923]
[1727146291132,1.18899749,2627.2,2626.7,3.0]
[1727146291339,1.18899749,2627.1,2626.9,3.80667]
[1727146291647,1.58378251,2627.3,2626.7,3.0]
[1727146291648,1.18899749,2627.2,2626.7,6.807]
[1727146291847,1.18899749,2627.1,2626.7,6.807]
[1727146292156,1.18899749,2627.1,2626.8,1.07456821]
[1727146292368,1.18899749,2627.0,2626.7,3.807]
[1727146292535,1.18899749,2627.0,2626.6,0.7512]
[1727146292741,3.80694,2626.8,2626.4,0.7512]
[1727146293040,1.18899749,2626.9,2626.4,0.7512]
[1727146293041,4.99584749,2626.9,2626.4,0.7512]
[1727146293262,0.04347414,2626.7,2626.4,0.7512]
[1727146293466,1.18899749,2626.8,2626.4,0.7512]
[1727146293695,0.04346432,2626.6,2626.4,0.7512]
[1727146293960,1.18899749,2626.8,2626.4,0.7512]
[1727146294175,0.04346432,2626.5,2626.4,0.7512]
[1727146294476,0.04346432,2626.5,2626.4,1.62581921]
[1727146294678,1.18899749,2626.8,2626.4,1.62581921]
[1727146294977,0.04346432,2626.5,2626.4,1.62581921]
[1727146295485,1.18899749,2626.8,2626.4,0.7512]
[1727146295655,0.04346432,2626.5,2626.4,0.7512]
[1727146295845,1.18899749,2626.7,2626.4,0.7512]
[1727146296050,0.04346432,2626.5,2626.4,0.7512]
[1727146296352,1.18899749,2626.8,2626.4,0.7512]
[1727146296554,0.04346432,2626.5,2626.4,0.7512]
[1727146296757,1.18899749,2626.8,2626.4,1.62581721]
[1727146296964,0.04346432,2626.5,2626.4,1.62581721]
[1727146297176,1.18899749,2626.8,2626.4,1.62581721]
[1727146297378,0.04346432,2626.5,2626.4,0.7512]
[1727146297590,3.80736,2626.5,2625.9,3.80818]
[1727146297771,5.03982181,2626.5,2626.0,0.7512]
[1727146298089,1.18899749,2626.4,2626.0,0.7512]
[1727146298379,0.04329246,2626.4,2626.0,4.55926]
[1727146298944,0.04329246,2626.4,2626.0,3.93868206]
[1727146299148,0.04329246,2626.4,2626.1,3.80791]
[1727146300773,1.23228995,2626.4,2626.1,3.80791]
[1727146300974,0.04329246,2626.4,2626.1,3.80791]
[1727146301286,0.79683969,2626.3,2626.1,3.80791]
[1727146301488,0.84000445,2626.3,2626.1,3.80791]
[1727146302308,1.62694727,2626.3,2626.0,0.7512]
[1727146302506,1.23838303,2626.3,2626.0,0.7512]
[1727146303930,1.23838303,2626.3,2626.0,4.55926]
[1727146304138,0.04316476,2626.3,2626.0,0.7512]
[1727146304430,0.8398956,2626.3,2626.1,3.80791]
[1727146304927,0.8398956,2626.3,2626.1,3.80782]
[1727146305544,0.8398956,2626.3,2626.2,5.56273352]
[1727146305708,0.04316476,2626.3,2626.2,5.56273352]
[1727146305903,0.04316476,2626.3,2626.2,5.63887972]
[1727146306738,0.04316476,2626.3,2626.2,5.56273352]
[1727146307114,1.23838303,2626.3,2626.2,1.75495352]
[1727146307327,1.23838303,2626.3,2626.2,1.0]
[1727146307530,0.83948474,2626.3,2626.2,1.0]
[1727146309114,0.04316476,2626.3,2626.2,4.80778]
[1727146309315,0.83948474,2626.3,2626.2,4.80778]
[1727146309520,0.83948474,2626.3,2626.2,2.25542821]
[1727146309827,0.04316476,2626.3,2626.2,2.25542821]
[1727146310207,0.83948474,2626.3,2626.2,2.25542821]
[1727146310648,0.04316476,2626.3,2626.2,2.25542821]
[1727146310946,0.04316476,2626.3,2626.2,6.13935569]
[1727146311444,0.83948474,2626.3,2626.2,6.13935569]
[1727146311604,0.83948474,2626.3,2626.2,5.13935569]
[1727146312004,0.04316476,2626.3,2626.2,5.06320821]
[1727146312244,1.23838303,2626.3,2626.2,1.25542821]
[1727146312440,0.83924185,2626.3,2626.2,1.25542821]
[1727146312736,1.23838303,2626.3,2626.2,1.25542821]
[1727146312943,0.83920463,2626.3,2626.2,1.25542821]
[1727146313511,0.83920463,2626.3,2626.0,0.7512]
[1727146313844,0.79603987,2626.1,2625.7,0.8323]
[1727146314017,0.83888052,2626.0,2625.8,3.80835]
[1727146315445,0.04284065,2626.0,2625.7,0.8323]
[1727146315609,0.83888052,2626.0,2625.7,6.17161921]
[1727146315810,0.04284065,2626.0,2625.7,6.17161921]
[1727146317010,0.04284065,2626.0,2625.7,2.36312921]
[1727146317211,0.83888052,2626.0,2625.7,2.36312921]
[1727146317744,0.04284065,2626.0,2625.7,6.17151921]
[1727146318059,0.04284065,2626.0,2625.8,1.31675113]
[1727146318850,0.04269818,2625.9,2625.8,1.31675113]
[1727146319146,0.79603987,2626.2,2625.8,1.31675113]
[1727146319623,0.04269818,2626.1,2625.8,1.31675113]
[1727146320222,0.83873805,2626.1,2625.8,5.12511113]
[1727146320428,0.04269818,2626.1,2625.9,0.60335668]
[1727146321129,0.83873805,2626.1,2625.9,0.60335668]
[1727146321335,0.83873805,2626.1,2625.8,1.31675113]
[1727146321651,0.83873805,2626.1,2625.8,5.12506113]
[1727146321857,0.04269818,2626.1,2625.8,5.12506113]
[1727146322232,0.79603987,2626.0,2625.8,5.12506113]
[1727146322439,0.83873805,2626.1,2625.8,1.31675113]
[1727146322641,0.79603987,2626.2,2625.8,1.31675113]
[1727146322844,0.04269818,2626.0,2625.8,1.31675113]
[1727146323055,0.79603987,2626.2,2625.9,0.59574611]
[1727146323239,0.79603987,2626.1,2625.9,0.59574611]
[1727146324248,0.79603987,2626.2,2625.9,0.59574611]
[1727146324757,0.79603987,2626.4,2626.1,0.7852]
[1727146324943,0.79603987,2626.5,2626.1,4.66926683]
[1727146325263,0.79603987,2626.5,2626.2,1.16648189]
[1727146326365,0.79603987,2626.5,2626.2,4.97418189]
[1727146326586,0.79603987,2626.5,2626.2,1.16648189]
[1727146327125,0.79603987,2626.3,2626.2,1.16648189]
[1727146327325,0.79603987,2626.4,2626.2,1.16648189]
[1727146327625,0.79603987,2626.3,2625.9,0.7852]
[1727146328050,5.00284827,2626.3,2626.2,0.5]
[1727146330981,5.15730827,2626.4,2626.2,0.5]
[1727146331476,0.79518039,2626.3,2626.2,0.5]
[1727146332180,5.00284827,2626.3,2626.2,0.5]
[1727146332585,5.54587251,2626.4,2626.2,0.5]
[1727146332586,8.96489827,2626.4,2626.2,0.5]
[1727146332880,1.19521827,2626.3,2626.2,0.5]
[1727146333241,3.80763,2626.3,2626.2,0.5]
[1727146334474,1.34746229,2626.4,2626.2,0.5]
[1727146334676,0.79531931,2626.3,2626.2,1.2749]
[1727146334885,1.19286229,2626.4,2626.2,1.2749]
[1727146334886,0.79531931,2626.4,2626.2,1.2749]
[1727146335451,0.79531931,2626.3,2626.2,1.2749]
[1727146336180,1.19286229,2626.4,2626.2,1.2749]
[1727146336350,1.19286229,2626.3,2626.2,1.2749]
[1727146336548,1.19286229,2626.4,2626.2,1.2749]
[1727146336758,0.79581508,2626.3,2626.2,1.2749]
[1727146336945,1.19286229,2626.4,2626.2,1.2749]
[1727146337148,0.79581944,2626.4,2626.2,1.35105109]
[1727146337347,0.79581944,2626.4,2626.3,0.51588711]
[1727146337574,0.79581944,2626.4,2626.2,1.35105109]
[1727146337575,0.79581944,2626.4,2626.2,1.2749]
[1727146337973,0.79581944,2626.3,2626.2,1.2749]
[1727146338176,0.04256186,2626.3,2626.2,1.2749]
[1727146338494,0.79581944,2626.4,2626.2,1.2749]
[1727146338786,0.04256186,2626.3,2626.2,1.2749]
[1727146338959,0.04256186,2626.3,2626.2,2.10953673]
[1727146340361,0.8383813,2626.3,2626.2,2.10953673]
[1727146341051,0.04256186,2626.3,2626.2,2.10953673]
[1727146341461,0.8383813,2626.3,2626.2,2.10953673]
[1727146341688,0.04256186,2626.3,2626.2,2.10953673]
[1727146342189,1.23542415,2626.3,2626.2,2.10953673]
[1727146342760,1.23542415,2626.3,2626.2,0.5]
[1727146343082,1.78094437,2626.3,2626.2,0.5]
[1727146343285,3.85019186,2626.3,2626.2,0.5]
[1727146343491,1.63741259,2626.3,2626.2,0.5]
[1727146344148,1.63746985,2626.3,2626.2,0.5]
[1727146345089,5.44509985,2626.3,2626.2,0.5]
[1727146345258,1.63741802,2626.3,2626.2,0.5]
[1727146346367,5.44504802,2626.3,2626.2,0.5]
[1727146347301,5.84377855,2626.3,2626.2,0.5]
[1727146347591,5.84361031,2626.3,2626.2,0.5]
[1727146347751,5.8435829,2626.3,2626.2,0.5]
[1727146347948,3.85019186,2626.3,2626.2,0.5]
[1727146348348,5.8436173,2626.3,2626.2,0.5]
[1727146349093,5.84347296,2626.3,2626.2,0.5]
[1727146350153,3.85019186,2626.3,2626.2,0.5]
[1727146350366,5.84351412,2626.3,2626.2,0.5]
[1727146351211,4.00479186,2626.3,2626.2,0.5]
[1727146351429,10.85168585,2626.3,2626.2,0.5]
[1727146351573,7.55479186,2626.3,2626.2,0.5]
[1727146351774,3.80952,2625.0,2624.9,0.76183855]
[1727146352023,1.59342676,2625.1,2624.9,0.76183855]
[1727146352314,0.04243901,2625.0,2624.9,0.76183855]
[1727146352676,0.83832817,2625.0,2624.9,0.76183855]
[1727146353716,0.04243901,2625.0,2624.9,0.76183855]
[1727146353916,0.83832817,2625.0,2624.9,0.76183855]
[1727146354388,0.04243901,2625.0,2624.9,0.76183855]
[1727146354592,0.83832817,2625.0,2624.9,0.76183855]
[1727146354910,0.04243901,2625.0,2624.6,4.69746887]
[1727146355075,4.60514916,2625.2,2624.7,0.85076989]
[1727146355517,0.04243901,2625.1,2624.7,0.85076989]
[1727146356023,0.04243901,2625.1,2624.8,0.8112]
[1727146356396,4.60501916,2625.3,2624.8,0.8112]
[1727146356722,0.04243901,2625.0,2624.6,0.8112]
[1727146356922,3.80937,2625.1,2624.6,1.35714893]
[1727146357289,3.80954,2625.0,2624.6,1.28096168]
[1727146357601,0.04243901,2625.0,2624.6,1.28096168]
[1727146358608,0.04243901,2625.0,2624.6,0.8112]
[1727146359093,3.80972,2624.9,2624.6,0.8112]
[1727146359419,0.04188857,2624.8,2624.6,0.8112]
[1727146359806,3.96397,2625.1,2624.6,0.8112]
[1727146360007,0.04188857,2624.7,2624.6,0.8112]
[1727146360214,3.96397,2625.1,2624.6,0.8112]
[1727146360413,3.96397,2625.1,2624.7,0.462142]
[1727146360720,0.04188857,2625.0,2624.7,0.462142]
[1727146362924,0.04188857,2625.0,2624.6,0.8112]
[1727146363479,3.85149857,2625.0,2624.6,0.8112]
[1727146364314,0.04188857,2625.0,2624.6,0.8112]
[1727146365238,0.04188857,2625.0,2624.7,3.88610911]
[1727146365607,3.80916,2625.3,2624.7,3.88610911]
[1727146365805,0.04188857,2624.9,2624.8,0.46973091]
[1727146366006,3.80916,2625.3,2624.8,0.46973091]
[1727146366233,0.04157889,2624.9,2624.8,0.46973091]
[1727146366404,3.80916,2625.3,2624.8,0.46973091]
[1727146366609,0.04157889,2624.9,2624.8,0.46973091]
[1727146366928,3.80916,2625.3,2624.8,0.46973091]
[1727146367102,0.04157889,2624.9,2624.8,0.46973091]
[1727146367807,3.80916,2625.3,2624.8,0.46973091]
[1727146368006,3.80916,2625.3,2624.9,0.435584]
[1727146368218,0.04157889,2625.2,2624.9,0.435584]
[1727146368532,3.80916,2625.3,2624.9,0.51176686]
[1727146368730,0.04161822,2625.1,2624.9,0.51176686]
[1727146369113,0.04162805,2625.0,2624.9,0.51176686]
[1727146369928,3.80916,2625.3,2624.9,0.51176686]
[1727146370115,0.04162805,2625.0,2624.9,0.51176686]
[1727146370318,3.80932,2625.2,2624.9,0.435584]
[1727146370521,0.04162805,2625.0,2624.7,0.07618291]
[1727146370721,3.80932,2625.2,2624.7,0.07618291]
[1727146370933,0.04162805,2624.9,2624.7,0.07618291]
[1727146371137,3.80932,2625.2,2624.7,0.07618291]
[1727146371295,0.04162805,2624.8,2624.7,0.07618291]
[1727146371500,0.04162805,2624.8,2624.7,1.24569641]
[1727146371737,3.80932,2625.2,2624.7,1.24569641]
[1727146371908,0.04162805,2624.8,2624.7,1.24569641]
[1727146372232,3.80924,2625.2,2624.7,1.24569641]
[1727146372393,0.04162805,2624.8,2624.7,1.24569641]
[1727146372598,3.80924,2625.2,2624.7,1.24569641]
[1727146372806,0.04162805,2624.8,2624.7,1.24569641]
[1727146373032,3.80924,2625.2,2624.7,1.24569641]
[1727146373329,0.04162805,2624.8,2624.7,1.24569641]
[1727146373536,3.80916,2625.3,2624.8,0.58669964]
[1727146373897,3.96343,2625.5,2624.9,0.90888582]
[1727146374096,7.77235,2625.5,2624.9,4.71846582]
[1727146374338,3.80908,2625.3,2624.9,0.8327]
[1727146377433,3.80908,2625.3,2624.9,1.74422226]
[1727146377595,3.80894,2625.4,2624.9,1.74422226]
[1727146378227,3.80894,2625.4,2624.9,2.24422226]
[1727146378629,3.80894,2625.4,2625.0,0.07618195]
[1727146378940,3.80894,2625.4,2624.9,2.32040268]
[1727146379109,3.96347,2625.5,2625.0,4.48114723]
[1727146379315,3.96347,2625.5,2625.1,0.07617608]
[1727146379909,3.80904,2625.4,2624.9,1.3327]
[1727146380248,3.80912,2625.3,2624.9,1.3327]
[1727146381236,0.1546,2625.1,2624.9,0.5]
[1727146381609,3.80952,2625.0,2624.9,0.5]
[1727146382143,3.80938,2625.1,2624.9,0.5]
[1727146382303,3.80938,2625.1,2624.9,1.0]
[1727146382502,7.61884,2625.1,2624.9,1.0]
[1727146382802,3.80938,2625.1,2624.9,1.0]
[1727146383199,0.04148547,2625.0,2624.9,1.0]
[1727146383636,3.85100547,2625.0,2624.9,1.0]
[1727146384736,0.04148547,2625.0,2624.9,1.0]
[1727146384907,0.04148547,2625.0,2624.9,2.3173589]
[1727146385107,3.80887,2625.5,2624.9,6.1270189]
[1727146385309,0.04136253,2625.0,2624.9,6.1270189]
[1727146385508,3.80887,2625.5,2624.9,6.1270189]
[1727146385749,0.04145105,2625.0,2624.9,6.1270189]
[1727146386211,3.80887,2625.5,2624.9,6.1270189]
[1727146386424,0.04145105,2625.4,2625.0,3.80947]
[1727146386608,8.41308916,2625.7,2625.1,4.85299889]
[1727146386809,4.64606413,2625.6,2625.2,0.7602]
[1727146387009,3.85017497,2625.6,2625.2,0.7602]
[1727146387218,4.64606413,2625.6,2625.2,0.7602]
[1727146387531,3.8088,2625.5,2625.2,0.7602]
[1727146388127,0.04151497,2625.4,2625.2,0.7602]
[1727146389645,0.04151497,2625.4,2625.0,0.07617902]
[1727146389646,4.64635413,2625.4,2625.0,0.7602]
[1727146390447,4.64635413,2625.4,2625.2,0.5]
[1727146390448,0.79588916,2625.3,2625.2,0.5]
[1727146390772,4.60483916,2625.4,2625.2,0.5]
[1727146390912,0.04151497,2625.3,2625.2,0.5]
[1727146391695,3.85059497,2625.3,2625.2,0.5]
[1727146392423,4.64648413,2625.3,2625.2,0.5]
[1727146394408,5.04442886,2625.3,2625.2,0.5]
[1727146394613,5.04442886,2625.3,2625.2,1.0]
[1727146396436,5.44233497,2625.3,2625.2,1.0]
[1727146397259,1.63325497,2625.3,2625.2,1.0]
[1727146399745,5.44233497,2625.3,2625.2,1.0]
[1727146400048,3.85059497,2625.3,2625.2,1.0]
[1727146400479,5.84550877,2625.3,2625.2,1.0]
[1727146400652,5.84602322,2625.3,2625.2,1.0]
[1727146401779,2.03694322,2625.3,2625.2,1.0]
[1727146402169,0.04151497,2625.3,2625.2,1.0]
[1727146403848,2.03730464,2625.3,2625.2,1.0]
[1727146407053,0.04151497,2625.3,2625.2,1.0]
[1727146407251,1.6382601,2625.3,2625.2,1.7614]
[1727146407488,1.19788785,2625.6,2625.3,0.7614]
[1727146407655,0.7985919,2626.0,2625.8,0.7614]
[1727146407863,0.7985919,2626.0,2625.9,9.86693812]
[1727146408071,0.7985919,2626.4,2626.2,0.7614]
[1727146408282,1.99689348,2626.8,2626.4,3.80735]
[1727146408283,0.7985919,2626.6,2626.4,3.80735]
[1727146408470,0.1546,2627.0,2626.3,0.37121566]
[1727146408797,3.80694,2626.8,2626.2,0.7614]
[1727146409101,3.80726,2626.6,2626.2,0.7614]
[1727146409322,3.80726,2626.6,2626.0,4.59103]
[1727146409605,3.80726,2626.6,2626.0,2.07860935]
[1727146409769,3.80726,2626.6,2626.0,0.7831]
[1727146410165,3.80726,2626.6,2626.0,4.59116]
[1727146410994,3.80749,2626.4,2625.8,0.7831]
[1727146411169,7.61511,2626.4,2625.8,0.7831]
[1727146411384,7.61511,2626.4,2625.8,1.623118]
[1727146411569,3.80749,2626.4,2625.8,1.623118]
[1727146411770,3.80765,2626.3,2625.8,1.623118]
[1727146413004,3.80765,2626.3,2625.8,0.7831]
[1727146415009,0.03470454,2626.2,2625.8,0.7831]
[1727146415308,3.80765,2626.3,2625.8,0.7831]
[1727146415509,0.03470454,2626.1,2625.8,0.7831]
[1727146415712,3.80765,2626.3,2625.8,0.7831]
[1727146416011,3.80781,2626.2,2625.6,4.59164]
[1727146416169,3.84251454,2626.2,2625.6,6.04975183]
[1727146416695,3.84251454,2626.2,2625.6,9.85830183]
[1727146416696,0.03470454,2626.2,2625.6,9.85830183]
[1727146417302,0.03470454,2626.2,2625.7,3.80849]
[1727146417809,0.03470454,2626.2,2625.6,6.04975183]
[1727146418016,0.03470454,2626.2,2625.6,9.85829183]
[1727146418224,0.03470454,2626.2,2625.7,1.30389101]
[1727146418585,3.84250454,2626.2,2625.7,1.30389101]
[1727146419327,3.80794,2626.1,2625.7,1.30389101]
[1727146419540,3.80794,2626.1,2625.6,4.59164]
[1727146419541,3.80821,2625.9,2625.6,0.7831]
[1727146419830,3.80821,2625.9,2625.4,0.7831]
[1727146420011,0.03545245,2625.8,2625.4,0.7831]
[1727146420329,3.84382245,2625.8,2625.4,0.7831]
[1727146420685,0.03545245,2625.8,2625.4,0.7831]
[1727146420903,3.84384245,2625.8,2625.4,0.7831]
[1727146421305,0.03545245,2625.8,2625.4,5.2069399]
[1727146421586,0.1546,2626.2,2625.6,3.80852]
[1727146421886,7.6154,2626.3,2625.7,3.96371827]
[1727146422080,3.80765,2626.3,2625.7,0.7831]
[1727146422322,7.6154,2626.3,2625.7,0.7831]
[1727146422500,7.6154,2626.3,2625.7,1.63236642]
[1727146423505,3.80765,2626.3,2625.8,3.80834]
[1727146423680,3.80765,2626.3,2625.7,1.63236642]
[1727146423882,7.6154,2626.3,2625.7,1.63236642]
[1727146424140,3.80779,2626.2,2625.7,1.63236642]
[1727146424285,3.80765,2626.3,2625.7,0.7831]
[1727146424286,3.80802,2626.1,2625.7,0.7831]
[1727146424787,3.80816,2626.0,2625.5,0.7636]
[1727146424993,3.96276,2626.0,2625.5,0.7636]
[1727146426423,3.96276,2626.0,2625.5,4.57237]
[1727146426589,3.80816,2626.0,2625.6,0.89961299]
[1727146428292,0.0353885,2625.9,2625.6,0.89961299]
[1727146431120,0.0353885,2625.9,2625.6,7.88888126]
[1727146431313,0.0353885,2625.9,2625.7,3.88465169]
[1727146431528,3.80779,2626.2,2625.8,0.7636]
[1727146431736,3.80779,2626.2,2625.8,2.0173133]
[1727146432032,3.96224,2626.3,2625.8,2.0173133]
[1727146432324,3.80757,2626.4,2625.8,2.0173133]
[1727146432325,3.80779,2626.2,2625.8,2.0173133]
[1727146433693,7.6157,2626.2,2625.8,0.7636]
[1727146433935,3.80779,2626.2,2625.8,0.7636]
[1727146434630,7.6157,2626.2,2625.8,0.7636]
[1727146434828,3.80779,2626.2,2625.8,0.7636]
[1727146436028,1.59292347,2626.5,2625.8,0.7636]
[1727146436029,3.80816,2626.0,2625.8,0.7636]
[1727146436235,3.80845,2625.8,2625.5,0.7636]
[1727146436532,3.80865,2625.6,2625.3,0.7636]
[1727146437159,3.80845,2625.8,2625.3,0.7636]
[1727146437548,3.80845,2625.8,2625.3,1.32850578]
[1727146437943,3.80866,2625.6,2625.3,1.32850578]
[1727146438774,3.80866,2625.6,2625.3,0.7636]
[1727146441268,3.80852,2625.7,2625.3,0.7636]
[1727146442177,3.80867,2625.6,2625.3,0.7636]
[1727146443384,0.03501457,2625.5,2625.3,0.7636]
[1727146447792,3.80843,2625.8,2625.3,0.7636]
[1727146447955,0.03501457,2625.4,2625.3,0.7636]
[1727146448160,3.80843,2625.8,2625.3,1.22851467]
[1727146448476,5.40072347,2626.2,2625.7,6.98908827]
[1727146448676,1.99364352,2626.3,2625.7,6.98908827]
[1727146448677,5.40041347,2626.4,2625.8,0.7598]
[1727146448883,1.74752347,2626.5,2625.9,0.5]
[1727146449065,1.59292347,2626.5,2625.9,0.5]
[1727146449371,3.80753,2626.4,2625.9,0.5]
[1727146449977,3.80753,2626.4,2625.9,4.30818]
[1727146450176,3.80753,2626.4,2626.0,0.506798]
[1727146450384,3.80753,2626.4,2625.9,0.5]
[1727146450768,5.40045347,2626.4,2625.9,0.5]
[1727146451000,3.80753,2626.4,2625.9,0.5]
[1727146452302,1.59292347,2626.5,2626.1,0.7598]
[1727146452489,5.40037347,2626.5,2626.1,0.7598]
[1727146452693,5.40037347,2626.5,2626.1,1.59226713]
[1727146453005,3.80745,2626.5,2626.1,1.59226713]
[1727146453807,5.40037347,2626.5,2626.1,1.59226713]
[1727146454109,1.59292347,2626.5,2626.1,1.59226713]
[1727146454309,3.80758,2626.4,2626.1,0.7598]
[1727146455379,5.40050347,2626.4,2626.1,0.7598]
[1727146455587,3.80772,2626.3,2626.1,0.7598]
[1727146456423,3.80772,2626.3,2625.9,0.5]
[1727146456424,3.80807,2626.0,2625.9,0.5]
[1727146457727,5.40099347,2626.0,2625.9,0.5]
[1727146458411,5.43521528,2626.0,2625.9,0.5]
[1727146458614,5.44055852,2626.0,2625.9,0.5]
[1727146460431,3.84229181,2626.0,2625.9,0.5]
[1727146461089,5.44010349,2626.0,2625.9,0.5]
[1727146461529,5.43990595,2626.0,2625.9,0.5]
[1727146462327,3.84229181,2626.0,2625.9,0.5]
[1727146462619,5.43984421,2626.0,2625.9,0.5]
[1727146466338,5.83953614,2626.0,2625.9,0.5]
[1727146466515,6.80428275,2626.0,2625.9,0.5]
[1727146466719,4.80703842,2626.0,2625.9,0.5]
[1727146467028,6.80329415,2626.0,2625.9,0.5]
[1727146469231,6.80308392,2626.0,2625.9,0.5]
[1727146470514,4.80703842,2626.0,2625.9,0.5]
[1727146470733,6.80283552,2626.0,2625.9,0.5]
[1727146472533,5.83808891,2626.0,2625.9,0.5]
[1727146472732,3.84229181,2626.0,2625.9,0.5]
[1727146472937,5.43846104,2626.0,2625.9,0.5]
[1727146473133,5.83808891,2626.0,2625.9,0.5]
[1727146474053,5.83759349,2626.0,2625.9,0.5]
[1727146474957,3.84229181,2626.0,2625.9,0.5]
[1727146475856,3.99689181,2626.0,2625.9,0.5]
[1727146476234,6.39125382,2626.0,2625.9,0.5]
[1727146476739,7.54689181,2626.0,2625.9,0.5]
[1727146477066,10.34031416,2626.0,2625.9,0.5]
[1727146478668,7.54689181,2626.0,2625.9,0.5]